Cogmind - Beta 14 @@@ ROGUE MODE // 2024.09.18 @ 16:08:35 Player: x1123581321345589144233 Result: Destroyed by Y-45 Defender with Heavy Assault Rifle Performance ------------- Evolutions (1) 500 Regions Visited (3) 600 Robots Destroyed (20) 100 Value Destroyed (601) 601 Prototype IDs (2) 40 Alien Tech Used (0) 0 Bonus (0) 0 TOTAL SCORE: 1841 Bonus ------- None Cogmind --------- Core Integrity 0/400 Matter 300/300 Energy 100/100 System Corruption 0% Temperature Cool (33) Movement Core (700) Ox13 Location -9/Materials Parts ------- > --- POWER (1) -------- (None) > --- PROPULSION (3) --- (None) > --- UTILITY (3) ------ High-capacity Storage Unit > --- WEAPON (2) ------- (None) > --- INVENTORY (20) --- Improved Ion Engine Large Matter Pod (150) Sensor Array Core Shielding Weapon Shielding Light Armor Plating Tractor Beam Field Recycling Unit (0) Sensor Drone Bay (20/20) Peak State ------------ > --- POWER ------------ Light Nuclear Core > --- PROPULSION ------- Aluminum Leg Aluminum Leg > --- UTILITY ---------- High-capacity Storage Unit Sensor Drone Bay > --- WEAPON ----------- Small Laser Assault Rifle > --- INVENTORY -------- Ion Engine Aluminum Leg Aluminum Leg Aluminum Leg Heat Sink High-capacity Storage Unit Large Matter Pod Sensor Array Core Shielding Weapon Shielding Light Armor Plating Tractor Beam Medium Laser Light Assault Rifle Grenade Launcher [Rating: 17] Favorites ----------- Power Light Nuclear Core Engine Ion Engine Power Core Light Nuclear Core Propulsion Aluminum Leg Leg Aluminum Leg Wheel Wheel Utility High-capacity Storage Unit Device Tractor Beam Storage High-capacity Storage Unit Processor Visual Processing Unit Protection Core Shielding Weapon Small Laser Energy Gun Small Laser Energy Cannon Advanced Beam Cannon Ballistic Gun Light Assault Rifle Launcher Grenade Launcher Special Melee Weapon Datajack Build | -11 -10 -10 -9 ------- Run | Yrd Mat Min Mat Slots Evolved 2 | . . . 2 Power . | . . . . Propulsion 1 | . . . 1 Utility 1 | . . . 1 Weapon . | . . . . Parts Attached 33 | 6 5 3 19 Power 4 | 1 1 . 2 Engine 3 | 1 . . 2 Core 1 | . 1 . . Reactor . | . . . . Propulsion 8 | 2 2 . 4 Treads . | . . . . Leg 6 | . 2 . 4 Wheel 2 | 2 . . . Hover . | . . . . Flight . | . . . . Utility 9 | 1 2 2 4 Device 5 | 1 . 1 3 Storage 1 | . 1 . . Processor 1 | . 1 . . Hackware . | . . . . Protection 2 | . . 1 1 Artifact . | . . . . Weapon 12 | 2 . 1 9 Energy Gun 5 | 1 . . 4 Energy Cannon 1 | . . . 1 Ballistic Gun 3 | 1 . 1 1 Ballistic Cannon . | . . . . Launcher 1 | . . . 1 Special Weapon . | . . . . Impact Weapon . | . . . . Slashing Weapon . | . . . . Piercing Weapon . | . . . . Special Melee Weapon 2 | . . . 2 Unidentified Prototypes 2 | . . 1 1 Parts Lost 20 | . 1 . 19 Power 2 | . . . 2 Propulsion 7 | . 1 . 6 Utility 3 | . . . 3 Weapon 8 | . . . 8 Highest Loss Streak 6 | . 1 . 6 To Critical Strikes . | . . . . Average Slot Usage (%) 92 | . 98 100 84 Engine 4 | . 6 . 7 Core 6 | . 7 14 . Leg 23 | . 14 28 24 Wheel 3 | . 13 . . Device 4 | . 2 . 9 Storage 12 | . 13 14 11 Processor 6 | . 11 13 . Protection 5 | . . . 11 Energy Gun 10 | . 14 14 7 Energy Cannon 2 | . . . 6 Ballistic Gun 8 | . 14 14 2 Special Melee Weapon 1 | . . . 3 Peak Build Rating 17 | 6 11 17 14 Average Rating 10 | 3 9 11 11 On Entrance 7 | . 6 11 11 Naked Turns . | . . . . Heaviest Build 54 | 6 47 49 54 Greatest Support 30 | 20 20 20 30 Greatest Overweight (x) 5 | . 4 2 5 Average Overweight (x) 1 | . 1 2 1 Largest Inventory Capacity 20 | 5 20 20 20 Average Capacity 19 | 5 19 20 20 Most Carried 16 | 3 13 16 14 Average Carried 11 | 2 9 13 12 Final Capacity 20 | 5 20 20 20 Final Carried 15 | 3 12 15 9 Class Distribution -------------------- 52% | Mutant 47% | Scavenger-Mutant Dominant Class ---------------- Scavenger-Mutant | -10/Materials Scavenger-Mutant | -10/Mines Mutant | -9/Materials Resources | -11 -10 -10 -9 ----------- Run | Yrd Mat Min Mat Matter Collected 685 | 264 215 10 196 Remotely 126 | . . . 126 Salvage Created 640 | 30 188 . 422 Parts 37 | 1 11 . 25 Haulers Intercepted . | . . . . Recyclers Shooed 1 | . . . 1 Parts Field Recycled . | . . . . Retrieved Matter . | . . . . Parts Self-Destructed . | . . . . Prevented . | . . . . Kills | -11 -10 -10 -9 ------- Run | Yrd Mat Min Mat Combat Hostiles Destroyed 16 | 1 4 . 11 Guns 10 | 1 4 . 5 Cannons 6 | . . . 6 Classes Destroyed 6 | 1 1 . 4 Worker 1 | . . . 1 Watcher 3 | . 1 . 2 Swarmer 4 | . . . 4 Grunt 8 | 1 4 . 3 Duelist 2 | . . . 2 Sentry 2 | . . . 2 Best Kill Streak 4 | 1 2 . 4 Combat Bots Only 4 | 1 2 . 4 Max Kills in Single Turn 1 | 1 1 . 1 Gunslinging . | . . . . Exploded . | . . . . Melee . | . . . . Uniques/NPCs Destroyed . | . . . . Combat | -11 -10 -10 -9 -------- Run | Yrd Mat Min Mat Hostile Shots Fired 208 | 5 25 . 178 Missed 54 | 3 5 . 46 Damage Taken 2016 | 20 275 . 1721 Core 465 | . 55 . 410 Absorbed by Shields . | . . . . Redirected to Shielding 73 | . . . 73 Core Remaining (%) 89 | 100 . 78 . Volleys Fired 92 | 4 20 . 68 Largest 2 | 2 2 . 2 Hottest 133 | 60 60 . 133 Shots Fired 149 | 8 40 . 101 Gun 114 | 8 40 . 66 Cannon 34 | . . . 34 Launcher 1 | . . . 1 Special . | . . . . Kinetic 43 | 4 20 . 19 Thermal 105 | 4 20 . 81 Explosive 1 | . . . 1 Electromagnetic . | . . . . Robot Hit Streak 8 | 4 8 . 7 Robot Miss Streak 5 | 3 2 . 5 Penetration Max . | . . . . Secondary Targets 1 | . 1 . . Max Gunslinging Chain 1 | . 1 . . Shots Hit Robots 101 | 4 27 . 70 Core Hits 43 | 2 15 . 26 Critical Kills . | . . . . Critical Parts Destroyed . | . . . . Critical Strikes . | . . . . Melee Attacks 6 | . . . 6 Impact . | . . . . Slashing . | . . . . Piercing . | . . . . Sneak Attacks 1 | . . . 1 Combat Hostiles . | . . . . Follow-up Attacks . | . . . . Damage Inflicted 1307 | 39 252 . 1016 Guns 869 | 39 252 . 578 Cannons 389 | . . . 389 Explosions 29 | . . . 29 Melee . | . . . . Ramming 20 | . . . 20 Kinetic 283 | 17 111 . 155 Thermal 975 | 22 141 . 812 Explosive 29 | . . . 29 Electromagnetic . | . . . . Impact . | . . . . Slashing . | . . . . Piercing . | . . . . Highest Corruption 1 | . 1 1 . Average Corruption 1 | . 1 1 . Corruption Purged . | . . . . Corruption Blocked . | . . . . Effects 8 | . 4 4 . Message Errors 1 | . . 1 . Heat Flow Errors 5 | . 3 2 . Energy Discharges 1 | . . 1 . Data Loss (minor) 1 | . 1 . . Overload Shots . | . . . . Overflow Damage 14 | . . . 14 Projectiles 14 | . . . 14 Explosions . | . . . . Melee . | . . . . Knockbacks . | . . . . Impact . | . . . . Kinetic . | . . . . Secondary . | . . . . Self-Inflicted Damage . | . . . . Shots . | . . . . Rammed . | . . . . Targets Rammed 6 | . . . 6 Kicked 6 | . . . 6 Crushed . | . . . . Highest Temperature 309 | 26 171 221 309 Average Temperature 95 | 15 54 107 114 Received Heat Transfer 630 | 12 153 . 465 Effects 2 | . . . 2 Interference 2 | . . . 2 Siege Activations . | . . . . Robots Corrupted . | . . . . Combat Hostiles . | . . . . Parts Fried . | . . . . Impact Corruptions . | . . . . Robots Melted . | . . . . Combat Hostiles . | . . . . Parts Melted 2 | . . . 2 Heat Transferred 2215 | 50 325 . 1840 Parts Sabotaged . | . . . . Parts Stolen . | . . . . Parts Stripped . | . . . . Power Chain Reactions . | . . . . Alert | -11 -10 -10 -9 ------- Run | Yrd Mat Min Mat Peak Influence 169 | 20 132 3 169 Initial 13 | . 13 3 . Average 39 | 3 49 2 61 Maximum Alert Level . | . . . . Low Security (%) 100 | 100 100 100 100 Level 1 . | . . . . Level 2 . | . . . . Level 3 . | . . . . Level 4 . | . . . . Level 5 . | . . . . High Security . | . . . . Max Security . | . . . . Squads Dispatched 3 | . 1 . 2 Investigation 2 | . . . 2 Extermination . | . . . . Reinforcement 1 | . 1 . . Assault . | . . . . Garrison . | . . . . Intercept . | . . . . Searches Triggered . | . . . . Construction Impeded . | . . . . Haulers Reinforced . | . . . . Active Scanning Responses . | . . . . Cargo Convoy Interrupts . | . . . . Stealth | -11 -10 -10 -9 --------- Run | Yrd Mat Min Mat Distress Signals 1 | . . . 1 Communications Jammed . | . . . . Distress Signals . | . . . . Times Spotted 29 | 1 7 . 21 Peak Tracking Total 5 | 1 3 . 5 Tactical Retreats 4 | . 1 . 3 Traps | -11 -10 -10 -9 ------- Run | Yrd Mat Min Mat Traps Triggered 1 | . . . 1 Indirectly . | . . . . Trap Hack Attempts . | . . . . Triggered . | . . . . Disarmed . | . . . . Reprogrammed . | . . . . Reused . | . . . . Traps Extracted . | . . . . Installed . | . . . . Triggered . | . . . . Machines | -11 -10 -10 -9 ---------- Run | Yrd Mat Min Mat Machines Disabled 3 | . . . 3 Max in Single Turn 1 | . . . 1 Machines Repaired . | . . . . Machines Dismantled . | . . . . Machines Sabotaged . | . . . . Overloaded Fab Kills . | . . . . Hacking | -11 -10 -10 -9 --------- Run | Yrd Mat Min Mat Machines Accessed 5 | . 2 1 2 Terminals 2 | . 1 . 1 Fabricators . | . . . . Repair Stations . | . . . . Recycling Units 2 | . 1 . 1 Scanalyzers . | . . . . Garrison Access . | . . . . Total Hacks 15 | . 8 1 6 Successful 12 | . 5 1 6 Failed 3 | . 3 . . Catastrophic . | . . . . Database Lockouts . | . . . . Manual . | . . . . Terminals 8 | . 5 . 3 Fabricators . | . . . . Repair Stations . | . . . . Recycling Units 6 | . 3 . 3 Scanalyzers . | . . . . Garrison Access . | . . . . Terminal Hacks 8 | . 4 1 3 Record 3 | . 2 . 1 Open Door 1 | . . 1 . Alert Level 1 | . . . 1 Locate Traps 1 | . 1 . . Security Status 1 | . . . 1 Investigation Status 1 | . 1 . . Fabricator Hacks . | . . . . Repair Station Hacks . | . . . . Recycling Unit Hacks 4 | . 1 . 3 Recycle Component 2 | . 1 . 1 Process 1 | . . . 1 Retrieve Matter 1 | . . . 1 Scanalyzer . | . . . . Garrison Access Hacks . | . . . . Unauthorized Hacks . | . . . . Terminals . | . . . . Fabricators . | . . . . Repair Stations . | . . . . Recycling Units . | . . . . Scanalyzers . | . . . . Garrison Access . | . . . . Data Cores Recovered . | . . . . Used . | . . . . Hacking Detections 4 | . 2 . 2 Full Trace Events 4 | . 2 . 2 Feedback Events 1 | . 1 . . Corruption 1 | . 1 . . Feedback Blocked . | . . . . Robot Schematics Acquired . | . . . . Robots Built . | . . . . Authchips . | . . . . Time . | . . . . Total Robot Build Rating . | . . . . Part Schematics Acquired . | . . . . Parts Built . | . . . . Authchips . | . . . . Time . | . . . . Total Part Build Rating . | . . . . Parts Repaired . | . . . . Time . | . . . . Parts Recycled 2 | . 1 . 1 Recycled Matter 381 | . . . 381 Retrieved Matter 486 | . . . 486 Retrieved Components . | . . . . Parts Scanalyzed . | . . . . Part Schematics Acquired . | . . . . Parts Damaged . | . . . . Bothacking | -11 -10 -10 -9 ------------ Run | Yrd Mat Min Mat Used RIF Installer . | . . . . Robots Hacked 3 | . . . 3 Non-combat 1 | . . . 1 Combat 2 | . . . 2 Robot Hacks Applied 3 | . . . 3 parse_system 3 | . . . 3 Relay Couplers Released . | . . . . Fabnet Peak Effective % . | . . . . Robots Rewired . | . . . . Allies Hacked . | . . . . Hacks Repelled . | . . . . Allies | -11 -10 -10 -9 -------- Run | Yrd Mat Min Mat Total Allies . | . . . . Largest Group . | . . . . Highest-Rated Group . | . . . . Highest-Rated Ally . | . . . . Total Orders . | . . . . Ally Attacks . | . . . . Total Damage . | . . . . Kills . | . . . . Allies Corrupted . | . . . . Allies Melted . | . . . . Intel | -11 -10 -10 -9 ------- Run | Yrd Mat Min Mat Robot Analysis Total . | . . . . Derelict Logs Recovered 1 | . . 1 . Drone Launches . | . . . . Drone Recoveries . | . . . . Exploration | -11 -10 -10 -9 ------------- Run | Yrd Mat Min Mat Turns Passed 1975 | 76 453 581 865 Spaces Moved 833 | 73 246 221 293 Core 17 | 17 . . . Treads . | . . . . Legs 591 | . 77 221 293 Wheels 225 | 56 169 . . Hover . | . . . . Flight . | . . . . Fastest Speed 50 | 50 80 260 190 Average Speed 198 | 73 154 260 219 Slowest Speed 470 | 80 400 260 470 Overloaded Moves . | . . . . Propulsion Burnouts . | . . . . Robots Hopped . | . . . . Cave-ins Triggered . | . . . . Exploration Rate (%) 33 | 8 40 57 28 Regions Visited 3 Branch Regions 1 Pre-discovered Areas . | . . . . Known Exits Taken . | . . . . Unknown Exits Taken 3 | 1 1 1 . Scrap Searched 1 | . . 1 . Spaces Dug . | . . . . Terrain Destroyed 5 | . . . 5 Melee . | . . . . Projectile . | . . . . AOE 5 | . . . 5 Terrain Rammed . | . . . . Walls Destroyed . | . . . . Machines Disabled . | . . . . Actions | -11 -10 -10 -9 --------- Run | Yrd Mat Min Mat Total 1003 | 85 284 230 404 Wait 4 | . 2 . 2 Move 830 | 72 245 220 293 Hop . | . . . . Pick Up 19 | 3 9 4 3 Fast Attach 16 | 6 3 . 7 Attach 14 | . 1 2 11 Detach 9 | . 2 2 5 Swap 3 | . 1 1 1 Drop 4 | . 1 1 2 Fire 92 | 4 20 . 68 Melee 6 | . . . 6 Ram . | . . . . Kick 6 | . . . 6 Crush . | . . . . Escape Stasis . | . . . . Rewire . | . . . . Trap . | . . . . Miscellaneous . | . . . . Route ------- -11/Scrapyard -10/Materials (discovered 2 exits: *Mat / *Min) -10/Mines -9/Materials (discovered 2 exits: *Mat x2) History --------- Turn | Location | Event 2 | -11/Scrapyard | Met Revision 17 51 | -11/Scrapyard | Discovered new exit (range 8) 77 | -11/Scrapyard | Entered Materials 193 | -10/Materials | Discovered new exit (range 13) 257 | -10/Materials | Discovered new exit (range 18) 530 | -10/Materials | Entered Mines 590 | -10/Mines | Learned 4 Materials zone layouts 609 | -10/Mines | Build established: Scavenger-Mutant 783 | -10/Mines | Discovered new exit (range 16) 1055 | -10/Mines | Found the Drone Emporium 1064 | -10/Mines | Found Prototype Device 1099 | -10/Mines | Identified Sensor Drone Bay 1111 | -10/Mines | Entered Materials 1111 | -9/Materials | Evolved 2 slots: Propulsion x1, Utility x1 1112 | -9/Materials | Identified exit to Materials 1241 | -9/Materials | Lost 4 parts (1p1n2w) 1398 | -9/Materials | Build established: Mutant 1786 | -9/Materials | Lost 6 parts (1p1n1u3w) 1837 | -9/Materials | Discovered exit to Materials (range 13) 1906 | -9/Materials | Core integrity fell below 50% 1934 | -9/Materials | Lost 3 parts (1u2w) 1968 | -9/Materials | Core integrity fell below 20% 1976 | -9/Materials | Destroyed by Y-45 Defender with Heavy Assault Rifle Last Messages --------------- R-06 Scavenger collects Lgt. Ion Engine. Heat Sink destroyed. Triggered Alarm Trap. An alarm sounds. ALERT: Alarm triggered, dispatching investigation squad. Beam Rifle destroyed. Lgt. Assault Rifle destroyed. U-05 Engineer lays Concrete. M-13 Machinist repairs G-34 Mercenary. Aluminum Leg destroyed. Jacked G-34 Mercenary... >>parse_system Reading system data... Datajack destroyed. Kicked Y-45 Defender. Core Shielding destroyed. Kicked Y-45 Defender. Imp. Aluminum Leg destroyed. Critical hit (Burn: +37). Map ----- +----------------------------------------------------+ | #??# ##???????? | | #??# """ """ #???????? | | # """ ""%% #??# """ """ #????????? | | # """ """ #??? """ """ ?????????? | | # """ """ % #????? ???????????? | | # ########/######???????? | | # #???????? | | # """ """ < #???????? | | # """ """ % % #???????? | | # """ """ ###+####### ###???????? | | # # ## #?????????? | | # % # ## #?????????? | | # """ ""# ## #######???? | | # """ %Y"# """ ## #???? | | "" ""# """"" ## #???? | | # " # """"" ## """ #???? | | # # """"" ## """ #???? | | # ############ """ ## """ #???? | | # ???????????# ?????# #???? | | # ????????????#####?????# #???? | | # ??????????????????????# ##### #???? | | ???????????????????????# #???? #???? | | ???????????########?????# #?????????? | | ????????????# #?????# #?????????? | | ????????????# ####### #?????????? | | ????????????# + @Y#?????????? | | ????????????# ######g #?????????? | | ????????????# #????# #?????????? | | ????????????# #????# #????????? | | ????????????########????# +????????? | | ????????????????????????# #????????? | | ????????????????????????# #????????? | | ????????????????????????# #????????? | | ???????????# #??# # # | | ???????????# #??# ########## | | ???????????# #??# #????????? | | ???????????# #??# #????????? | | ???????????# #??# #????????? | | ???????????#####+#####??# #????????? | | ????########### #??????# #????????? | | ????# # #??????# ######???? | | ????# + #??????# ## ##???? | | ????# # ######## ## #???? | | ????# # #???? | | ????# + #???? | | ????# # "" #???? | | ????# ###+### "" ##???? | | ????# ## T # T" #####???? | | ????############ # "" #???????? | | ??????????# #??# # "" #???????? | +----------------------------------------------------+ Best States ------------- Heat Dissipation 38 Energy Generation 14 Energy Capacity 265 Matter Stores 300 Matter Capacity 300 Sight Range 18 Terrain Scan Density 10 Core Shielding 20 Evasion (%) 50 Item Schematics ----------------- None Robot Schematics ------------------ None Fabricated ------------ Nothing Alien Tech Used ----------------- None Achievements -------------- One Hack Too Far Storm Trooper Use The Force Challenges ------------ None Game ------ Seed ThermalRecoilPower Manual? 0 Play Time 00:24:05 Cumulative 1.3 hours Start 2024.09.18 @ 15:44:38 End 2024.09.18 @ 16:08:35 Sessions 1 Manual Loads 0 Difficulty Rogue Special Mode None Game No. 3 Rogue 3 Adventurer 0 Explorer 0 Win Type - Total 0 Types 0/0/0/0/0/0/0/0/0 Lore% 0 Gallery% 4 Achievement% 5 Wizard Run 0 Options --------- Layout 1 ASCII 0 Keyboard 1 Movement Numpad Keybinds 0 Fullscreen 1 Font 24/Smallcaps Map View 50x35 Zoom Use 0% Tactical HUD 0 Map Filters NONE Filters NONE Steam 1 RUN: 9418c7fd-a1d4-41e4-a7af-5512b532a484